bitfinex-derivatives/quotes_ETHF0:USTF0_20240915
["timestamp","ask_amount","ask_price","bid_price","bid_amount"]
[1726425638352,3.2078,2369.4,2369.0,0.4963924]
[1726425638552,7.7678,2369.5,2369.0,0.4963924]
[1726425638760,7.7678,2369.5,2369.0,14.53635326]
[1726425638956,3.2078,2369.8,2369.4,0.4963924]
[1726425639153,3.2078,2369.8,2368.9,3.62981]
[1726425639154,3.2078,2369.5,2369.1,0.4963924]
[1726425639353,3.2078,2369.5,2369.1,14.53635326]
[1726425639548,7.7678,2369.2,2368.6,3.2078]
[1726425639753,4.56,2369.2,2368.8,0.4963924]
[1726425640052,4.56,2369.2,2368.9,0.4963924]
[1726425640255,4.56,2369.2,2368.9,14.50635326]
[1726425640452,4.56,2369.5,2369.1,0.4663924]
[1726425640658,3.2078,2369.3,2368.9,14.46197086]
[1726425640857,0.212,2370.5,2368.9,14.46197086]
[1726425640858,4.56,2369.9,2369.2,3.6741924]
[1726425641052,4.56,2369.9,2369.5,0.4663924]
[1726425641253,4.56,2369.9,2369.6,0.4663924]
[1726425641661,3.2078,2370.1,2369.6,0.4663924]
[1726425641860,4.56,2370.2,2369.7,3.2078]
[1726425642057,4.56,2370.2,2369.9,0.4663924]
[1726425642465,4.56,2370.6,2370.1,0.4663924]
[1726425642652,4.56,2370.9,2370.4,0.4663924]
[1726425642857,7.7678,2370.9,2370.4,0.4663924]
[1726425643164,4.56,2370.9,2370.4,14.50635326]
[1726425643459,4.56,2370.9,2370.6,0.4663924]
[1726425643964,4.56,2371.3,2370.8,3.6741924]
[1726425644161,0.6048,2372.0,2370.0,3.2078]
[1726425644162,4.56,2370.9,2370.0,3.2078]
[1726425644356,4.56,2370.9,2370.4,0.4663924]
[1726425644659,4.56,2370.9,2370.6,0.4663924]
[1726425644866,4.56,2370.9,2370.7,0.4663924]
[1726425646364,4.2176,2370.8,2370.3,3.2078]
[1726425646562,4.56,2370.9,2370.5,0.4663924]
[1726425646962,4.56,2370.9,2370.5,14.50635326]
[1726425647168,4.56,2370.9,2370.7,0.4663924]
[1726425647468,4.56,2370.9,2370.6,0.4663924]
[1726425648364,3.2078,2371.3,2370.6,14.50635326]
[1726425648865,3.2078,2371.3,2370.6,14.03996086]
[1726425649056,4.56,2371.4,2371.0,0.4663924]
[1726425649568,4.56,2371.4,2371.2,0.4663924]
[1726425649758,4.2168,2371.3,2370.7,3.2078]
[1726425649962,7.7678,2371.4,2371.0,0.4663924]
[1726425650160,4.56,2371.7,2371.3,3.6741924]
[1726425650362,4.56,2371.7,2371.5,0.4663924]
[1726425650661,3.2078,2372.0,2371.6,3.6741924]
[1726425650858,4.56,2372.4,2371.9,0.4663924]
[1726425651060,4.56,2372.4,2372.0,0.4663924]
[1726425651360,4.2152,2372.3,2371.8,3.2078]
[1726425651565,4.56,2372.4,2372.1,0.4663924]
[1726425651764,4.56,2372.4,2372.1,3.2078]
[1726425651974,3.2078,2373.1,2372.1,3.2078]
[1726425651975,4.56,2372.7,2372.3,0.4663924]
[1726425652164,4.56,2372.7,2372.5,0.4663924]
[1726425652561,4.56,2372.7,2372.6,3.2078]
[1726425652783,4.56,2372.7,2372.6,3.6741924]
[1726425653062,4.56,2372.7,2372.6,17.71415326]
[1726425653262,4.56,2373.1,2372.6,17.71415326]
[1726425653470,4.56,2373.1,2372.9,0.4663924]
[1726425654074,4.56,2373.4,2373.0,0.4663924]
[1726425654967,4.56,2373.4,2372.8,3.2078]
[1726425655162,4.56,2373.4,2373.0,0.4663924]
[1726425655366,7.7678,2373.4,2373.1,0.4663924]
[1726425655570,7.7678,2373.4,2373.1,0.03894861]
[1726425655571,4.56,2373.4,2373.1,0.03894861]
[1726425655768,4.56,2373.4,2372.9,3.2078]
[1726425655769,8.7736,2373.4,2372.9,3.2078]
[1726425655966,4.56,2373.4,2372.9,14.03996086]
[1726425657271,4.56,2373.4,2372.1,3.2078]
[1726425657272,4.56,2373.0,2372.1,3.2078]
[1726425657485,4.56,2372.2,2371.8,17.24776086]
[1726425658373,4.56,2372.2,2372.1,3.2078]
[1726425658577,4.56,2372.6,2372.1,17.24776086]
[1726425658788,4.98137,2372.6,2372.1,17.24776086]
[1726425659079,4.56,2372.6,2372.1,17.24776086]
[1726425659278,4.56,2372.6,2372.4,3.2078]
[1726425659482,8.7752,2372.6,2372.0,3.2078]
[1726425659776,4.56,2372.6,2372.1,0.42144]
[1726425659977,4.56,2372.9,2372.3,3.2078]
[1726425660177,4.56,2372.9,2372.3,14.03996086]
[1726425660372,4.56,2372.6,2372.3,14.03996086]
[1726425660580,4.56,2372.6,2371.5,3.2078]
[1726425660882,0.42158,2371.5,2371.2,3.2078]
[1726425661204,4.56,2371.7,2371.2,3.2078]
[1726425661399,0.42155,2371.6,2371.2,17.24776086]
[1726425661594,4.56,2371.7,2371.2,17.24776086]
[1726425661793,4.56,2371.4,2371.2,3.2078]
[1726425661995,0.42156,2371.6,2371.2,17.24776086]
[1726425662197,4.98153,2371.7,2371.2,17.24776086]
[1726425662391,4.56,2371.7,2371.2,17.24776086]
[1726425662802,4.56,2372.1,2371.4,3.2078]
[1726425662992,7.7678,2372.1,2371.4,3.2078]
[1726425663193,3.2078,2371.6,2371.0,3.2078]
[1726425663595,3.2078,2371.6,2371.0,17.24776086]
[1726425663596,3.62935,2371.6,2371.0,17.24776086]
[1726425663796,4.56,2371.7,2371.0,17.24776086]
[1726425664003,8.18934,2371.7,2371.0,17.24776086]
[1726425664199,7.7678,2371.7,2371.0,17.24776086]
[1726425664500,7.7678,2371.7,2371.3,3.2078]
[1726425664501,4.56,2371.7,2371.3,3.2078]
[1726425664706,4.56,2372.1,2371.3,3.2078]
[1726425664898,4.56,2372.1,2371.6,3.2078]
[1726425665097,4.56,2372.1,2371.9,3.2078]
[1726425665395,4.56,2372.1,2371.6,14.03996086]
[1726425665396,1.21942663,2372.0,2371.7,0.42153]
[1726425665601,4.56,2372.4,2371.9,3.2078]
[1726425665807,4.56,2372.4,2372.0,3.2078]
[1726425665808,1.27265593,2372.3,2372.0,3.2078]
[1726425666111,4.98135,2372.7,2372.1,3.2078]
[1726425666401,0.6511151,2372.4,2372.1,3.2078]
[1726425666696,0.9324751,2372.3,2372.2,0.42142]
[1726425666897,0.6511151,2372.7,2372.3,0.42141]
[1726425667104,0.6511151,2372.8,2372.6,3.2078]
[1726425667604,0.65141679,2372.7,2372.6,17.24776086]
[1726425667792,0.65141679,2372.8,2372.6,17.24776086]
[1726425667994,0.26354899,2372.7,2372.6,14.03996086]
[1726425668301,9.68936578,2372.7,2371.9,3.2078]
[1726425668507,0.42137,2372.6,2371.9,3.2078]
[1726425668801,4.98135,2372.7,2371.9,17.66924086]
[1726425669005,4.98135,2372.7,2372.2,3.2078]
[1726425669202,4.56,2372.7,2372.2,3.2078]
[1726425669404,4.56,2372.7,2372.2,17.24776086]
[1726425669799,4.56,2372.7,2372.5,3.2078]
[1726425670004,4.56,2372.7,2372.4,3.2078]
[1726425670303,4.56,2372.7,2372.3,0.42141]
[1726425670504,3.2078,2373.5,2372.4,9.82872]
[1726425670696,3.85921679,2374.3,2373.5,0.4212]
[1726425670897,1.08159522,2374.5,2372.9,3.2078]
[1726425670898,3.2078,2374.0,2372.9,3.2078]
[1726425671112,4.56,2373.7,2372.9,3.2078]
[1726425671311,1.35429551,2373.6,2372.9,17.24776086]
[1726425671503,1.35429551,2373.5,2372.9,17.24776086]
[1726425671809,0.42121,2373.5,2372.9,17.24776086]
[1726425672112,0.4212,2373.6,2372.9,17.24776086]
[1726425672999,4.56,2373.7,2372.9,17.24776086]
[1726425673000,0.42129,2373.1,2372.9,14.03996086]
[1726425673202,0.4213,2373.0,2372.5,3.2078]
[1726425673406,0.42135,2372.8,2372.5,14.03996086]
[1726425673606,4.98135,2372.7,2372.1,3.2078]
[1726425673808,4.98136,2372.7,2372.1,17.24776086]
[1726425674111,4.56,2372.7,2372.1,17.24776086]
[1726425674610,4.56,2372.7,2372.4,3.2078]
[1726425675001,4.56,2372.7,2372.4,17.24776086]
[1726425675206,8.84939522,2373.3,2372.4,17.24776086]
[1726425675404,3.2078,2373.1,2372.4,17.24776086]
[1726425675605,0.42127,2373.2,2372.6,3.2078]
[1726425675801,4.56,2373.3,2372.6,3.2078]
[1726425675802,0.91584567,2373.1,2372.6,3.2078]
[1726425676007,4.56,2373.3,2372.9,3.2078]
[1726425676308,4.56,2373.3,2372.6,14.46131086]
[1726425676309,0.91590818,2373.2,2372.6,14.03996086]
[1726425676513,0.91590818,2373.1,2372.6,14.03996086]
[1726425676811,4.56,2373.3,2372.6,14.03996086]
[1726425677001,3.62911,2373.0,2372.6,14.03996086]
[1726425677202,0.42131,2373.0,2372.6,14.03996086]
[1726425677404,0.57235304,2372.9,2372.6,14.03996086]
[1726425677599,4.56,2373.3,2372.6,14.03996086]
[1726425677803,0.4213,2373.0,2372.6,14.03996086]
[1726425678007,0.57236485,2372.9,2372.6,14.03996086]
[1726425678202,0.57234864,2372.8,2372.6,14.03996086]
[1726425678408,0.42128,2373.1,2372.6,14.03996086]
[1726425678612,0.5722749,2373.0,2372.6,14.03996086]
[1726425678811,0.5722749,2372.9,2372.6,14.03996086]
[1726425679012,4.56,2373.3,2372.8,3.2078]
[1726425679208,0.57228509,2373.2,2372.8,3.2078]
[1726425679409,3.62902,2373.5,2372.8,14.03996086]
[1726425679410,3.2078,2373.5,2372.8,14.03996086]
[1726425679610,0.42129,2373.1,2372.8,14.03996086]
[1726425679814,0.57229262,2373.0,2372.8,14.03996086]
[1726425680006,0.42127,2373.2,2372.8,17.24776086]
[1726425680207,0.57231405,2373.1,2372.5,3.2078]
[1726425680408,0.42128,2373.1,2372.5,3.2078]
[1726425680711,0.42133,2372.9,2372.5,17.24776086]
[1726425681019,0.4213,2373.0,2372.5,17.24776086]
[1726425681805,0.42129,2373.1,2372.5,17.24776086]
[1726425682209,0.42125,2373.3,2372.9,3.2078]
[1726425682614,0.42125,2373.3,2372.9,17.24776086]
[1726425682615,0.57238829,2373.2,2372.9,17.24776086]
[1726425682808,0.42125,2373.3,2372.9,17.24776086]
[1726425683019,0.57239215,2373.2,2372.9,17.24776086]
[1726425683207,0.42125,2373.3,2372.9,17.24776086]
[1726425683512,1.86589522,2373.6,2372.9,17.24776086]
[1726425683513,1.08159522,2373.6,2372.9,17.24776086]
[1726425683715,1.90955527,2373.5,2372.9,17.24776086]
[1726425684010,0.99367438,2373.4,2372.9,17.24776086]
[1726425684214,0.57244438,2373.3,2372.9,17.24776086]
[1726425684404,3.2078,2373.5,2372.9,17.24776086]
[1726425684405,0.57244438,2373.2,2373.0,0.42129]
[1726425684606,7.37446369,2373.8,2373.0,0.42129]
[1726425684607,1.50277522,2373.7,2373.0,0.42129]
[1726425684803,1.50277522,2373.7,2373.2,3.2078]
[1726425684804,1.48854839,2373.6,2373.2,3.2078]
[1726425685006,0.57251861,2373.5,2373.2,3.2078]
[1726425685206,1.14503886,2373.5,2373.2,17.24776086]
[1726425685411,0.57252025,2373.4,2373.2,17.24776086]
[1726425685617,0.57252025,2373.3,2373.2,17.24776086]
[1726425685806,0.57252025,2373.3,2373.2,14.03996086]
[1726425686002,0.4212,2373.6,2373.2,21.46136086]
[1726425686201,0.57227843,2373.5,2373.2,17.24776086]
[1726425686415,1.91736309,2373.6,2373.2,17.24776086]
[1726425686713,0.57227843,2373.5,2373.2,17.24776086]
[1726425686910,1.48789599,2373.5,2373.2,17.24776086]
[1726425687230,1.48789599,2373.4,2373.2,14.03996086]
[1726425687509,0.57227843,2373.3,2373.2,17.24776086]
[1726425687719,0.57227843,2373.3,2373.2,21.46136086]
[1726425688011,1.50279522,2373.6,2373.2,21.46136086]
[1726425688208,1.50279522,2373.6,2373.2,17.24776086]
[1726425688412,0.56122166,2373.3,2373.2,17.24776086]
[1726425688614,1.08159522,2373.5,2373.2,17.24776086]
[1726425688802,1.45911462,2373.4,2373.2,17.24776086]
[1726425689008,0.56120337,2373.3,2373.2,17.24776086]
[1726425689205,0.56120337,2373.3,2373.2,14.03996086]
[1726425689406,1.45919744,2373.4,2373.2,14.03996086]
[1726425689609,1.45919744,2373.3,2373.2,14.03996086]
[1726425690409,1.81258979,2373.3,2373.2,14.03996086]
[1726425690618,2.37379316,2373.3,2373.2,14.03996086]
[1726425691417,1.72269718,2373.3,2373.2,17.24776086]
[1726425691614,1.72269718,2373.3,2373.2,14.03996086]
[1726425692418,2.37379316,2373.3,2373.2,14.03996086]
[1726425693011,2.37379316,2373.3,2373.2,17.24776086]
[1726425693411,1.72269718,2373.3,2373.2,17.24776086]
[1726425693814,2.37369697,2373.3,2373.2,21.46136086]
[1726425694209,2.37369697,2373.3,2373.2,21.88262086]
[1726425694410,1.72269718,2373.3,2373.2,21.88262086]
[1726425694812,2.37371632,2373.3,2373.2,21.88262086]
[1726425695015,2.37371632,2373.3,2373.2,21.46136086]
[1726425695214,2.28709985,2373.3,2373.2,21.46136086]
[1726425695418,2.71767069,2373.3,2373.2,21.88262086]
[1726425695612,2.71759384,2373.3,2373.2,27.88262086]
[1726425695819,2.71759384,2373.3,2373.2,21.88262086]
[1726425696417,3.25839145,2373.3,2373.2,21.88262086]
[1726425696724,3.2584212,2373.3,2373.2,27.88262086]
[1726425697520,0.65104261,2373.4,2373.2,9.70501414]
[1726425697714,0.65104261,2373.4,2373.3,4.63483]
[1726425698214,0.65104261,2373.4,2373.3,17.13204414]
[1726425698419,0.42116,2373.8,2373.4,0.42122]
[1726425698620,0.42116,2373.8,2373.6,3.2078]
[1726425698923,11.03818904,2374.2,2373.6,3.2078]
[1726425699123,11.03818904,2374.2,2373.6,6.49721414]
[1726425699124,3.2078,2373.9,2373.6,6.49721414]
[1726425699327,0.42117,2373.7,2373.6,6.49721414]
[1726425700024,3.27038904,2374.1,2373.6,6.49721414]
[1726425700025,0.42116,2373.8,2373.6,6.49721414]
[1726425700215,0.42115,2373.9,2373.6,6.49721414]
[1726425700415,11.03818904,2374.2,2373.6,6.49721414]
[1726425700619,0.42115,2373.9,2373.6,6.49721414]
[1726425700919,11.03818904,2374.2,2373.6,9.70501414]
[1726425700920,0.42113,2374.0,2373.6,9.70501414]
[1726425701118,3.27038904,2374.3,2373.6,10.12619414]
[1726425701313,0.8054,2374.4,2373.9,3.2078]
[1726425701314,0.42108,2374.2,2373.9,3.2078]
[1726425701520,0.42108,2374.2,2373.9,9.70501414]
[1726425701724,0.8054,2374.4,2373.9,6.49721414]
[1726425701923,0.4211,2374.2,2373.9,6.49721414]
[1726425702326,0.8054,2374.4,2373.9,9.70501414]
[1726425702327,0.82436,2374.4,2373.9,9.70501414]
[1726425702520,1.07220279,2374.4,2373.9,9.70501414]
[1726425702726,4.56,2374.5,2373.9,9.70501414]
[1726425702727,1.07218279,2374.5,2373.9,9.70501414]
[1726425702922,0.65114279,2374.5,2373.9,9.70501414]
[1726425703118,4.56,2374.2,2373.9,9.70501414]
[1726425703315,0.42112,2374.0,2373.9,9.70501414]
[1726425703520,0.42112,2374.0,2373.9,6.49721414]
[1726425703720,7.7678,2374.2,2373.4,3.2078]
[1726425703721,0.42116,2373.8,2373.4,3.2078]
[1726425703920,9.47167279,2374.2,2373.4,3.2078]
[1726425703921,1.50528442,2373.5,2373.4,9.70501414]
[1726425704129,0.42121,2373.5,2373.4,9.70501414]
[1726425704318,0.4212,2373.6,2373.4,9.70501414]
[1726425704623,0.42121,2373.5,2373.4,9.70501414]
[1726425704827,3.62901,2373.5,2373.4,6.49721414]
[1726425705022,3.62901,2373.5,2373.0,3.2078]
[1726425705023,7.4214,2373.5,2373.0,3.2078]
[1726425705325,7.4214,2373.5,2372.3,3.2078]
[1726425705326,0.42128,2373.1,2372.3,3.2078]
[1726425705528,7.7678,2373.2,2372.3,3.2078]
[1726425705529,1.08430039,2372.6,2372.3,9.70501414]
[1726425705725,0.42134,2372.8,2372.3,9.70501414]
[1726425705726,1.34786825,2372.5,2372.3,9.70501414]
[1726425705927,0.94856966,2372.4,2372.3,6.49721414]
[1726425706131,1.59948646,2372.4,2372.3,6.49721414]
[1726425706331,1.59948646,2372.4,2372.2,1.02409904]
[1726425706627,0.2636018,2372.3,2372.2,7.52131318]
[1726425707231,0.9145186,2372.4,2372.2,7.52131318]
[1726425707429,0.2636018,2372.3,2372.2,7.52131318]
[1726425707727,0.9145186,2372.3,2372.2,7.52131318]
[1726425708028,1.06740096,2372.3,2372.2,6.49721414]
[1726425708231,1.71831776,2372.3,2372.2,6.49721414]
[1726425708638,1.06740096,2372.3,2372.2,6.49721414]
[1726425709234,0.42137,2372.6,2372.2,6.49721414]
[1726425709426,1.71818877,2372.3,2372.2,6.49721414]
[1726425709636,2.22051117,2372.3,2372.2,6.49721414]
[1726425709831,1.56963705,2372.3,2372.2,16.71241414]
[1726425710026,1.34900897,2372.3,2372.2,2.7919295]
[1726425710231,1.34900897,2372.3,2372.2,13.4285695]
[1726425710232,0.5023795,2372.3,2372.2,13.4285695]
[1726425710528,1.08619079,2372.3,2372.2,13.4285695]
[1726425711225,0.42135,2372.7,2372.2,7.0071295]
[1726425711226,0.42136,2372.7,2372.2,7.0071295]
[1726425711431,0.42136,2372.7,2372.4,3.2078]
[1726425711830,0.42136,2372.7,2372.4,5.9997295]
[1726425712128,3.2078,2373.1,2372.4,5.9997295]
[1726425712438,0.42134,2372.8,2372.4,5.9997295]
[1726425714930,3.2078,2373.1,2372.4,5.9997295]
[1726425715235,1.07241775,2372.8,2372.4,5.9997295]
[1726425716233,0.42134,2372.8,2372.4,5.9997295]
[1726425716434,0.42135,2372.7,2372.4,5.9997295]
[1726425716629,0.42134,2372.8,2372.4,5.9997295]
[1726425716935,1.07245388,2372.8,2372.4,5.9997295]
[1726425717637,3.36901486,2372.8,2372.4,5.9997295]
[1726425717940,0.42135,2372.7,2372.4,5.9997295]
[1726425718128,0.26356941,2372.7,2372.4,5.9997295]
[1726425718634,0.26357397,2372.6,2372.4,5.9997295]
[1726425718838,3.79035486,2372.8,2372.4,5.9997295]
[1726425719029,0.26357599,2372.7,2372.4,5.9997295]
[1726425719335,0.26357599,2372.6,2372.4,5.9997295]
[1726425719537,2.71786713,2372.7,2372.4,5.9997295]
[1726425719739,0.26357566,2372.6,2372.4,5.9997295]
[1726425719935,2.71786713,2372.7,2372.4,5.9997295]
[1726425720142,0.98288297,2372.6,2372.4,5.9997295]
[1726425720333,0.7193094,2372.5,2372.4,5.9997295]
[1726425720738,0.7193094,2372.5,2372.4,10.2149295]
[1726425721137,0.7193094,2372.5,2372.4,5.9997295]
[1726425722139,1.16871755,2372.5,2372.4,5.9997295]
[1726425723436,1.16871755,2372.5,2372.1,3.2078]
[1726425723437,5.38391755,2372.5,2372.1,3.2078]
[1726425723638,0.42144,2372.2,2372.1,5.9997295]
[1726425723833,0.42144,2372.2,2372.1,2.5779]
[1726425723834,6.06895299,2372.2,2372.1,2.5779]
[1726425724033,19.41531299,2372.2,2371.1,4.149]
[1726425724340,3.13648714,2371.8,2371.4,3.2078]
[1726425724542,1.43231299,2371.7,2371.4,3.2078]
[1726425724846,2.71496714,2371.8,2371.4,2.7919295]
[1726425724847,1.59026755,2371.6,2371.4,2.7919295]
[1726425725038,1.16871755,2371.5,2371.4,2.7919295]
[1726425725232,1.16871755,2371.5,2371.0,3.2078]
[1726425725233,1.16871755,2371.5,2371.0,3.62945]
[1726425725542,1.08521796,2371.3,2371.0,6.4213795]
[1726425725735,1.08521796,2371.3,2371.0,5.9997295]
[1726425726633,0.42157,2371.5,2371.0,5.9997295]
[1726425726634,1.08521796,2371.5,2371.0,5.9997295]
[1726425726839,0.44908021,2371.4,2371.3,3.2078]
[1726425727239,0.44908021,2371.4,2371.3,5.9997295]
[1726425727636,1.08521796,2371.5,2371.3,5.9997295]
[1726425727637,1.08521796,2371.5,2371.3,10.2165295]
[1726425727838,1.08521796,2371.5,2371.3,5.9997295]
[1726425728143,1.08521796,2371.6,2371.3,5.9997295]
[1726425728441,0.44907772,2371.5,2371.3,5.9997295]
[1726425728745,1.08521796,2371.6,2371.3,5.9997295]
[1726425728943,0.44903928,2371.5,2371.3,5.9997295]
[1726425729140,1.08521796,2371.7,2371.3,5.9997295]
[1726425729441,0.44906123,2371.6,2371.3,5.9997295]
[1726425729644,1.08521796,2371.7,2371.3,5.9997295]
[1726425729943,0.44906415,2371.6,2371.3,2.7919295]
[1726425730142,1.50673796,2371.8,2371.3,2.7919295]
[1726425730338,1.5342869,2371.7,2371.3,2.7919295]
[1726425730543,1.08521796,2371.7,2371.3,2.7919295]
[1726425730736,0.44904944,2371.6,2371.3,2.7919295]
[1726425730949,0.42158,2371.5,2371.3,2.7919295]
[1726425731141,0.44900404,2371.4,2371.3,2.7919295]
[1726425731348,0.87058404,2371.4,2371.3,2.7919295]
[1726425731842,0.44900404,2371.4,2371.3,2.7919295]
[1726425732347,1.08521796,2371.5,2371.3,2.7919295]
[1726425732540,1.08521796,2371.8,2371.4,4.2168]
[1726425732748,1.08521796,2371.8,2371.3,2.7919295]
[1726425732749,1.08521796,2371.8,2371.3,5.9997295]
[1726425733044,0.44909824,2371.7,2371.3,6.4213295]
[1726425733242,1.50673796,2371.8,2371.3,6.4213295]
[1726425733243,1.08521796,2371.8,2371.3,6.4213295]
[1726425734037,1.08521796,2371.9,2371.3,6.4213295]
[1726425734249,0.44918246,2371.8,2371.3,6.4213295]
[1726425734446,1.50671796,2371.9,2371.5,3.2078]
[1726425734641,0.44918681,2371.8,2371.5,3.2078]
[1726425734840,1.50671796,2371.9,2371.5,5.9997295]
[1726425735039,0.87070835,2371.8,2371.5,5.9997295]
[1726425735238,1.08521796,2371.8,2371.5,5.9997295]
[1726425735445,1.50671796,2371.9,2371.5,5.9997295]
[1726425735644,0.87069627,2371.8,2371.5,5.9997295]
[1726425735845,0.87069627,2371.8,2371.5,2.7919295]
[1726425735846,0.42155,2371.6,2371.5,2.7919295]
[1726425736045,0.42154,2371.7,2371.5,2.7919295]
[1726425736651,0.42155,2371.6,2371.5,2.7919295]
[1726425736958,0.42154,2371.7,2371.5,2.7919295]
[1726425737143,0.42157,2371.5,2371.0,3.2078]
[1726425737342,0.42155,2371.6,2371.0,6.4213795]
[1726425737751,0.42155,2371.6,2371.1,0.42163]
[1726425738153,0.42154,2371.7,2371.1,3.2135595]
[1726425738355,5.13521796,2371.8,2371.1,2.7919295]
[1726425738654,0.44912168,2371.7,2371.1,2.7919295]
[1726425738851,0.42153,2371.7,2371.1,3.2135595]
[1726425739451,0.42153,2371.7,2371.2,0.42162]
[1726425739957,0.42153,2371.7,2371.2,2.7919295]
[1726425740150,0.42153,2371.7,2371.2,3.2135495]
[1726425740452,0.42153,2371.7,2371.2,2.7919295]
[1726425740849,1.50673796,2371.8,2371.4,3.2078]
[1726425741055,0.42152,2371.8,2371.4,3.2078]
[1726425741256,1.50673796,2371.8,2371.4,5.9997295]
[1726425741444,1.08521796,2371.8,2371.4,5.9997295]
[1726425741648,1.50673796,2371.8,2371.4,5.9997295]
[1726425742857,1.08521796,2371.8,2371.4,6.4213095]
[1726425743051,1.50671796,2371.9,2371.4,5.9997295]
[1726425743252,1.53450556,2371.8,2371.4,6.4212995]
[1726425743452,1.08521796,2371.9,2371.4,6.4212995]
[1726425743658,1.08521796,2371.9,2371.5,0.42156]
[1726425743857,0.4493235,2371.8,2371.5,0.42156]
[1726425744054,1.50670796,2371.9,2371.5,3.2134895]
[1726425744259,1.50670796,2371.9,2371.7,3.2078]
[1726425744260,0.44933388,2371.8,2371.7,3.2078]
[1726425744568,0.44937732,2371.8,2371.7,3.2078]
[1726425744750,1.53459528,2371.8,2371.7,2.7919295]
[1726425746460,0.44937732,2371.8,2371.7,2.7919295]
[1726425747260,1.16855867,2371.8,2371.7,2.7919295]
[1726425747860,0.44944793,2371.8,2371.7,2.7919295]
[1726425748063,1.16856462,2371.9,2371.7,2.7919295]
[1726425748261,1.16859068,2371.8,2371.7,2.7919295]
[1726425748456,0.51529068,2371.8,2371.7,2.7919295]
[1726425749263,2.68315768,2371.8,2371.7,2.7919295]
[1726425749461,2.94682623,2371.8,2371.7,2.7919295]
[1726425750161,0.77895923,2371.8,2371.7,2.7919295]
[1726425750767,2.17400012,2371.8,2371.7,2.7919295]
[1726425750963,0.26366813,2371.8,2371.7,2.7919295]
[1726425754272,6.42645714,2371.9,2371.7,2.7919295]
[1726425754468,0.26366434,2371.8,2371.7,2.7919295]
[1726425756565,1.39199194,2372.0,2371.7,13.0079295]
[1726425756761,1.39199194,2372.0,2371.6,3.29]
[1726425756762,0.5741006,2372.3,2372.0,0.42147]
[1726425756962,3.71139,2372.5,2372.0,0.42147]
[1726425757465,3.29,2372.3,2372.0,0.42147]
[1726425758567,0.69166794,2372.2,2372.1,3.2078]
[1726425758972,0.69166794,2372.2,2372.1,3.62926]
[1726425759166,0.69166794,2372.2,2372.1,7.84446]
[1726425759369,0.6916662,2372.2,2372.1,7.84446]
[1726425759568,0.6916662,2372.2,2372.1,3.2078]
[1726425759870,0.6916662,2372.2,2372.1,7.84446]
[1726425760480,0.6916662,2372.2,2372.1,13.423]
[1726425760481,1.12409118,2372.2,2372.1,13.423]
[1726425760671,2.75745653,2372.2,2372.1,13.84446]
[1726425761377,0.43234276,2372.2,2372.1,13.84446]
[1726425761580,1.63336535,2372.3,2372.1,13.84446]
[1726425761581,1.63345257,2372.3,2372.2,0.42144]
[1726425761783,2.06578686,2372.3,2372.2,0.42144]
[1726425761986,1.12407117,2372.3,2372.2,4.63664]
[1726425762388,1.12407117,2372.3,2372.2,4.2152]
[1726425762582,0.43233429,2372.3,2372.2,4.2152]
[1726425762784,0.43233429,2372.3,2372.2,4.63664]
[1726425762990,1.12407117,2372.3,2372.2,4.63664]
[1726425765197,0.80747,2372.6,2372.2,4.63664]
[1726425765198,0.80748,2372.6,2372.2,4.63664]
[1726425765394,1.1240873,2372.5,2372.2,0.42144]
[1726425765694,1.1240873,2372.4,2372.3,3.2078]
[1726425765885,1.5454873,2372.4,2372.3,3.2078]
[1726425766082,1.5454873,2372.4,2371.5,3.2078]
[1726425766083,10.2152,2372.4,2371.5,3.2078]
[1726425766388,1.63387613,2371.6,2371.5,3.2078]
[1726425766590,0.69169747,2371.6,2371.5,3.2078]
[1726425767279,1.12400838,2371.6,2371.5,3.2078]
[1726425767792,1.12400838,2371.6,2371.5,3.62936]
[1726425768183,2.75815492,2371.6,2371.5,3.62936]
[1726425768789,2.75815492,2371.6,2371.5,3.2078]
[1726425769088,2.75793612,2371.6,2371.5,3.2078]
[1726425769290,1.12378958,2371.6,2371.5,3.2078]
[1726425769490,0.42151,2371.8,2371.5,3.2078]
[1726425769789,3.29,2372.0,2371.5,3.2078]
[1726425769790,1.12377812,2371.7,2371.5,3.2078]
[1726425769985,0.69155577,2371.6,2371.5,3.2078]
[1726425770593,1.12377812,2371.6,2371.4,0.42157]
[1726425770892,0.43222235,2371.6,2371.5,3.2078]
[1726425771090,1.12379421,2371.6,2371.5,3.2078]
[1726425772391,0.43221211,2371.6,2371.5,3.2078]
[1726425772697,1.77500364,2371.7,2371.5,3.2078]
[1726425772898,0.69153937,2371.6,2371.5,3.2078]
[1726425773089,1.12375148,2371.6,2371.5,3.2078]
[1726425773689,1.12375148,2371.6,2371.4,3.2078]
[1726425773996,1.12375148,2371.5,2371.4,3.2078]
[1726425775785,0.69155813,2371.5,2371.4,3.2078]
[1726425775993,0.43222332,2371.5,2371.4,3.2078]
[1726425776187,0.69155813,2371.5,2371.4,3.2078]
[1726425776393,1.12378145,2371.5,2371.4,3.2078]
[1726425779102,3.14708594,2371.7,2371.4,3.2078]
[1726425779304,0.69149803,2371.5,2371.4,3.2078]
[1726425779600,0.43218627,2371.5,2371.4,3.2078]
[1726425780099,0.69147426,2371.5,2371.4,3.2078]
[1726425780601,1.12364567,2371.5,2371.4,3.2078]
[1726425780896,0.43217141,2371.5,2371.4,3.2078]
[1726425781093,0.69147426,2371.5,2371.4,3.2078]
[1726425781293,0.43217141,2371.5,2371.4,3.2078]
[1726425781489,1.12364567,2371.6,2371.4,3.2078]
[1726425781786,1.12364567,2371.5,2371.4,3.2078]
[1726425781987,1.12364567,2371.6,2371.4,3.2078]
[1726425782191,1.12364567,2371.5,2371.4,3.2078]
[1726425785492,1.12364567,2371.5,2371.3,0.42159]
[1726425785693,7.0882903,2371.7,2371.3,0.42159]
[1726425785694,1.12364567,2371.4,2371.3,0.42159]
[1726425785893,1.12364567,2371.4,2371.3,3.62939]
[1726425786100,1.12364567,2371.4,2371.3,7.84619]
[1726425786999,1.12364567,2371.4,2371.3,3.62939]
[1726425788294,2.17989509,2371.5,2371.3,3.62939]
[1726425788503,0.43199834,2371.4,2371.3,0.42159]
[1726425788713,0.43199834,2371.4,2371.3,3.62939]
[1726425789004,1.38240852,2371.4,2371.3,7.84619]
[1726425789298,3.44953337,2371.4,2371.3,17.13619]